Cogmind - Beta 16 @@@ ROGUE MODE // 2025.12.21 @ 18:48:22 Player: useeikick Result: Destroyed by IJ-ERY(h) with Bolt Gun Performance ------------- Evolutions (0) 0 Regions Visited (5) 1000 Robots Destroyed (5) 25 Value Destroyed (70) 70 Prototype IDs (14) 280 Alien Tech Used (0) 0 Bonus (995) 995 TOTAL SCORE: 2370 Bonus ------- Follower Combat Kills 195 Registered with UFD 300 Met Optimus in HQ 500 Cogmind --------- Core Integrity 0/250 Matter 300/300 Energy 100/100 System Corruption 0% Temperature Cool (47) Movement Core (50) Location -7/Scraptown Parts ------- > --- POWER (1) -------- (None) > --- PROPULSION (2) --- (None) > --- UTILITY (2) ------ (None) > --- WEAPON (2) ------- (None) > --- INVENTORY (5) ---- Light Deuterium Engine Scrap Suit Transmission Jammer Ripper Peak State ------------ > --- POWER ------------ Light Angular Momentum Engine > --- PROPULSION ------- Compact Wheel Compact Wheel > --- UTILITY ---------- Experimental Sensor Array Improved Melee Analysis Suite > --- WEAPON ----------- Greatsword > --- INVENTORY -------- Aluminum Leg Transmission Jammer CPS Tube Ripper Botcube [Rating: 30] Favorites ----------- Power Light Angular Momentum Engine Engine Light Angular Momentum Engine Propulsion Compact Wheel Wheel Compact Wheel Hover Unit Airjet Utility Experimental Sensor Array Device Experimental Sensor Array Processor Improved Melee Analysis Suite Hackware Authchip [Device] Weapon Greatsword Ballistic Gun Assault Rifle Special Weapon CPS Tube Slashing Weapon Greatsword Build | -11 -10 -10 -10 -7 -7 ------- Run | Yrd Mat Min Sub Rec Scr Slots Evolved . | . . . . . . Power . | . . . . . . Propulsion . | . . . . . . Utility . | . . . . . . Weapon . | . . . . . . Parts Attached 17 | 4 . 4 1 3 5 Power 2 | 1 . 1 . . . Engine 2 | 1 . 1 . . . Core . | . . . . . . Reactor . | . . . . . . Propulsion 7 | 2 . . 1 2 2 Treads . | . . . . . . Leg . | . . . . . . Wheel 5 | 2 . . 1 2 . Hover 2 | . . . . . 2 Flight . | . . . . . . Utility 4 | . . 2 . . 2 Device 2 | . . 1 . . 1 Storage . | . . . . . . Processor 1 | . . . . . 1 Hackware 1 | . . 1 . . . Protection . | . . . . . . Artifact . | . . . . . . Weapon 4 | 1 . 1 . 1 1 Energy Gun . | . . . . . . Energy Cannon . | . . . . . . Ballistic Gun 1 | 1 . . . . . Ballistic Cannon . | . . . . . . Launcher . | . . . . . . Special Weapon 1 | . . . . . 1 Impact Weapon . | . . . . . . Slashing Weapon 2 | . . 1 . 1 . Piercing Weapon . | . . . . . . Special Melee Weapon . | . . . . . . Unidentified Prototypes 1 | . . 1 . . . Parts Lost 7 | . . . . 1 6 Power 1 | . . . . . 1 Propulsion 3 | . . . . 1 2 Utility 2 | . . . . . 2 Weapon 1 | . . . . . 1 Highest Loss Streak 6 | . . . . 1 6 To Critical Strikes . | . . . . . . Average Backups 4 | 1 3 4 4 4 4 Power . | . 1 1 1 1 . Propulsion 1 | 1 2 2 3 2 1 Utility . | . . . . . 1 Weapon . | . . . . . 1 Tool/Special . | . . . . . . Unused Backups 6 | . . 1 . 1 4 Power 2 | . . 1 . . 1 Propulsion 2 | . . . . 1 1 Utility 2 | . . . . . 2 Weapon . | . . . . . . Tool/Special . | . . . . . . Average Slot Usage (%) 83 | . 57 71 92 83 83 Engine 14 | . 14 14 14 14 14 Wheel 27 | . 28 28 28 27 27 Device 10 | . . 1 7 9 12 Processor 6 | . . . . . 11 Hackware 6 | . . 2 14 14 2 Ballistic Gun 3 | . 14 14 14 2 . Slashing Weapon 13 | . . 10 14 14 13 Peak Build Rating 30 | 4 4 25 25 28 30 Average Rating 23 | 3 4 10 21 25 25 On Entrance 11 | . 4 4 17 25 20 Avg Prop Armor Cover (%) 18 | 18 . . . . . Naked Turns 1 | . . . . . 1 Heaviest Build 16 | 7 7 15 15 15 16 Greatest Support 32 | 26 26 26 26 32 32 Greatest Overweight (x) 3 | 2 . . . 1 3 Average Overweight (x) . | . . . . . . Largest Inventory Capacity 5 | 5 5 5 5 5 5 Average Capacity 5 | 5 5 5 5 5 5 Most Carried 5 | 3 3 5 5 5 5 Average Carried 4 | 1 3 4 4 4 4 Final Capacity 5 | 5 5 5 5 5 5 Final Carried 5 | 3 3 5 4 5 5 Class Distribution -------------------- 51% | Mutant 48% | Gladiator Dominant Class ---------------- Mutant | -10/Materials Mutant | -10/Mines Mutant | -10/Subcaves Mutant | -7/Recycling Gladiator | -7/Scraptown Resources | -11 -10 -10 -10 -7 -7 ----------- Run | Yrd Mat Min Sub Rec Scr Matter Collected 456 | 183 . 77 46 10 140 Remotely . | . . . . . . Salvage Created 143 | . . 26 44 . 73 Parts 7 | . . 1 2 . 4 Haulers Intercepted . | . . . . . . Recyclers Shooed . | . . . . . . Parts Field Recycled . | . . . . . . Retrieved Matter . | . . . . . . Parts Self-Destructed 8 | . . . 8 . . Prevented . | . . . . . . Parts Restored . | . . . . . . Kills | -11 -10 -10 -10 -7 -7 ------- Run | Yrd Mat Min Sub Rec Scr Combat Hostiles Destroyed 4 | . . 2 1 . 1 Melee 4 | . . 2 1 . 1 Classes Destroyed 3 | . . 1 1 . 1 Turret 1 | . . . 1 . . Swarmer 3 | . . 2 1 . . Bolteater 1 | . . . . . 1 Best Kill Streak 2 | . . 2 1 . 1 Combat Bots Only 2 | . . 2 1 . 1 Max Kills in Single Turn 1 | . . 1 1 . 1 Gunslinging . | . . . . . . Exploded . | . . . . . . Melee 1 | . . 1 1 . 1 Uniques/NPCs Destroyed . | . . . . . . Combat | -11 -10 -10 -10 -7 -7 -------- Run | Yrd Mat Min Sub Rec Scr Hostile Shots Fired 93 | . . 6 28 9 50 Missed 34 | . . 1 12 3 18 Hits 59 | . . 5 16 6 32 Projectile 59 | . . 5 16 6 32 Critical Strikes 2 | . . . . . 2 Damage Taken 707 | . . 42 101 60 504 Core 250 | . . 18 19 5 208 Absorbed by Shields . | . . . . . . Core Remaining (%) 100 | 100 . . . . . Volleys Fired 2 | . . . 2 . . Largest 1 | . . . 1 . . Hottest 20 | . . . 20 . . Shots Fired 2 | . . . 2 . . Gun 2 | . . . 2 . . Cannon . | . . . . . . Launcher . | . . . . . . Special . | . . . . . . Kinetic 2 | . . . 2 . . Thermal . | . . . . . . Explosive . | . . . . . . Electromagnetic . | . . . . . . Robot Hit Streak . | . . . . . . Robot Miss Streak 2 | . . . 2 . . Penetration Max . | . . . . . . Secondary Targets . | . . . . . . Shots Hit Robots 10 | . . 4 3 2 1 Core Hits 4 | . . 2 2 . . Critical Kills . | . . . . . . Critical Parts Destroyed . | . . . . . . Critical Strikes 2 | . . . 1 1 . Sever 2 | . . . 1 1 . Melee Attacks 14 | . . 6 5 2 1 Impact . | . . . . . . Slashing 14 | . . 6 5 2 1 Piercing . | . . . . . . Sneak Attacks . | . . . . . . Combat Hostiles . | . . . . . . Follow-up Attacks . | . . . . . . Damage Inflicted 395 | . . 124 132 68 71 Guns . | . . . . . . Cannons . | . . . . . . Explosions . | . . . . . . Melee 383 | . . 124 132 68 59 Ramming 12 | . . . . . 12 Kinetic . | . . . . . . Thermal . | . . . . . . Explosive . | . . . . . . Electromagnetic . | . . . . . . Impact . | . . . . . . Slashing 383 | . . 124 132 68 59 Piercing . | . . . . . . Highest Corruption . | . . . . . . Average Corruption . | . . . . . . Corruption Purged . | . . . . . . Corruption Blocked . | . . . . . . Overload Shots . | . . . . . . Overflow Damage 61 | . . 22 . . 39 Projectiles . | . . . . . . Explosions . | . . . . . . Melee 61 | . . 22 . . 39 Knockbacks . | . . . . . . Impact . | . . . . . . Kinetic . | . . . . . . Secondary . | . . . . . . Self-Inflicted Damage 6 | . . . . . 6 Shots . | . . . . . . Rammed 1 | . . . . . 1 Targets Rammed 1 | . . . . . 1 Kicked . | . . . . . . Crushed . | . . . . . . Highest Temperature 48 | . . . . . 48 Average Temperature 21 | . . . . . 21 Received Heat Transfer 350 | . . . 54 24 272 Siege Activations . | . . . . . . Martial Activations . | . . . . . . Shielding Activations . | . . . . . . Robots Disrupted . | . . . . . . Combat Hostiles . | . . . . . . Robots Corrupted . | . . . . . . Combat Hostiles . | . . . . . . Parts Fried . | . . . . . . Impact Corruptions . | . . . . . . Robots Melted . | . . . . . . Combat Hostiles . | . . . . . . Parts Melted . | . . . . . . Heat Transferred . | . . . . . . Parts Sabotaged . | . . . . . . Parts Stolen . | . . . . . . Parts Stripped . | . . . . . . Power Chain Reactions . | . . . . . . Alert | -11 -10 -10 -10 -7 -7 ------- Run | Yrd Mat Min Sub Rec Scr Maximum Alert Level . | . . . . . . Low Security (%) 100 | 100 100 100 . 100 . Level 1 . | . . . . . . Level 2 . | . . . . . . Level 3 . | . . . . . . Level 4 . | . . . . . . Level 5 . | . . . . . . High Security . | . . . . . . Max Security . | . . . . . . Peak Influence 72 | . . 36 . 72 . Initial 70 | . . . . 70 . Average 9 | . . 6 . 11 . Influence Increases 286 | . . 46 204 36 . Destroy 0b10 Robot/C 160 | . . 40 100 20 . Allied During Kill 22 | . . 6 14 2 . Successful Hack 14 | . . . . 14 . Lose Combat Pursuer 90 | . . . 90 . . Influence Decreases 286 | . . 46 56 184 . Entered New Map 78 | . . . . 78 . Time Decay 178 | . . 46 36 96 . Lost Part 10 | . . . . 10 . Lost Ally 20 | . . . 20 . . Squads Dispatched 1 | . 1 . . . . Investigation . | . . . . . . Extermination . | . . . . . . Reinforcement 1 | . 1 . . . . Assault . | . . . . . . Garrison . | . . . . . . Intercept . | . . . . . . Searches Triggered . | . . . . . . Construction Impeded . | . . . . . . Haulers Reinforced . | . . . . . . Active Scanning Responses . | . . . . . . Cargo Convoy Interrupts . | . . . . . . Stealth | -11 -10 -10 -10 -7 -7 --------- Run | Yrd Mat Min Sub Rec Scr Distress Signals . | . . . . . . Communications Jammed . | . . . . . . Distress Signals . | . . . . . . Times Spotted 43 | . 1 2 9 1 30 Peak Tracking Total 16 | . 1 2 6 1 16 Tactical Retreats 3 | . . . 2 . 1 Traps | -11 -10 -10 -10 -7 -7 ------- Run | Yrd Mat Min Sub Rec Scr Traps Triggered . | . . . . . . Indirectly . | . . . . . . Trap Hack Attempts . | . . . . . . Triggered . | . . . . . . Disarmed . | . . . . . . Reprogrammed . | . . . . . . Reused . | . . . . . . Traps Extracted . | . . . . . . Installed . | . . . . . . Triggered . | . . . . . . Machines | -11 -10 -10 -10 -7 -7 ---------- Run | Yrd Mat Min Sub Rec Scr Machines Disabled 1 | . . . 1 . . Max in Single Turn . | . . . . . . Machines Repaired . | . . . . . . Machines Dismantled . | . . . . . . Machines Sabotaged . | . . . . . . Overloaded Fab Kills . | . . . . . . Hacking | -11 -10 -10 -10 -7 -7 --------- Run | Yrd Mat Min Sub Rec Scr Machines Accessed 17 | . . . . 7 10 Terminals 5 | . . . . 5 . Fabricators . | . . . . . . Repair Stations . | . . . . . . Recycling Units . | . . . . . . Scanalyzers . | . . . . . . Garrison Access . | . . . . . . Total Hacks 105 | . . . . 33 72 Successful 100 | . . . . 28 72 Failed 5 | . . . . 5 . Catastrophic 1 | . . . . 1 . Database Lockouts . | . . . . . . Manual 3 | . . . . 1 2 Terminals 8 | . . . . 8 . Fabricators . | . . . . . . Repair Stations . | . . . . . . Recycling Units . | . . . . . . Scanalyzers . | . . . . . . Garrison Access . | . . . . . . Terminal Hacks 100 | . . . . 28 72 Record 97 | . . . . 26 71 Zone Layout 1 | . . . . 1 . Proto ID Catalog 1 | . . . . . 1 Release Object 1 | . . . . 1 . Fabricator Hacks . | . . . . . . Repair Station Hacks . | . . . . . . Recycling Unit Hacks . | . . . . . . Scanalyzer . | . . . . . . Garrison Access Hacks . | . . . . . . Unauthorized Hacks . | . . . . . . Terminals . | . . . . . . Fabricators . | . . . . . . Repair Stations . | . . . . . . Recycling Units . | . . . . . . Scanalyzers . | . . . . . . Garrison Access . | . . . . . . Data Cores Recovered . | . . . . . . Used . | . . . . . . Hacking Detections 4 | . . . . 4 . Full Trace Events . | . . . . . . Feedback Events . | . . . . . . Feedback Blocked . | . . . . . . Robot Schematics Acquired . | . . . . . . Robots Built . | . . . . . . Authchips . | . . . . . . Time . | . . . . . . Total Robot Build Rating . | . . . . . . Part Schematics Acquired . | . . . . . . Parts Built . | . . . . . . Authchips . | . . . . . . Time . | . . . . . . Total Part Build Rating . | . . . . . . Part Studies Acquired . | . . . . . . Parts Repaired . | . . . . . . Time . | . . . . . . Parts Recycled . | . . . . . . Recycled Matter . | . . . . . . Retrieved Matter . | . . . . . . Retrieved Components . | . . . . . . Parts Scanalyzed . | . . . . . . Part Schematics Acquired . | . . . . . . Parts Damaged . | . . . . . . Bothacking | -11 -10 -10 -10 -7 -7 ------------ Run | Yrd Mat Min Sub Rec Scr Used RIF Installer . | . . . . . . Robots Hacked . | . . . . . . Non-combat . | . . . . . . Combat . | . . . . . . Robot Hacks Applied . | . . . . . . Relay Couplers Released . | . . . . . . Fabnet Peak Effective % . | . . . . . . Robots Rewired . | . . . . . . Allies Hacked . | . . . . . . Hacks Repelled . | . . . . . . Allies | -11 -10 -10 -10 -7 -7 -------- Run | Yrd Mat Min Sub Rec Scr Total Allies 4 | . . 3 . . 1 Largest Group 3 | . . 3 3 2 2 Highest-Rated Group 61 | . . 40 40 24 61 Highest-Rated Ally 61 | . . 16 16 16 61 Total Orders . | . . . . . . Ally Attacks 44 | . . 2 21 9 12 Total Damage 578 | . . 15 225 122 216 Kills 8 | . . . 3 1 4 Allies Corrupted . | . . . . . . Allies Melted 5 | . . . . . 5 Intel | -11 -10 -10 -10 -7 -7 ------- Run | Yrd Mat Min Sub Rec Scr Active Infowar (turns) 2618 | . . 21 221 413 1963 Sensors 2142 | . . 21 221 413 1487 ECM 476 | . . . . . 476 Robot Analysis Total . | . . . . . . Derelict Logs Recovered 1 | . . 1 . . . Drone Launches . | . . . . . . Drone Recoveries . | . . . . . . Exploration | -11 -10 -10 -10 -7 -7 ------------- Run | Yrd Mat Min Sub Rec Scr Turns Passed 3628 | 59 38 259 434 597 2241 Spaces Moved 3493 | 47 43 232 417 539 2215 Core 32 | 29 . . . . 3 Treads . | . . . . . . Legs . | . . . . . . Wheels 3378 | 18 43 232 417 539 2129 Hover 83 | . . . . . 83 Flight . | . . . . . . Fastest Speed 50 | 50 90 90 80 80 56 Average Speed 96 | 101 90 90 88 97 98 Slowest Speed 200 | 150 90 90 90 100 200 Overloaded Moves . | . . . . . . Propulsion Burnouts . | . . . . . . Robots Hopped . | . . . . . . Potential Cave-ins . | . . . . . . Cave-ins Triggered . | . . . . . . Exploration Rate (%) 42 | 4 11 45 19 82 94 Regions Visited 5 Branch Regions 4 Pre-discovered Areas 1 | . . . 1 . . Known Exits Taken . | . . . . . . Unknown Exits Taken 5 | 1 1 1 1 1 . Scrap Searched 8 | . . 1 . . 7 Spaces Dug . | . . . . . . Terrain Destroyed . | . . . . . . Melee . | . . . . . . Projectile . | . . . . . . AOE . | . . . . . . Terrain Rammed . | . . . . . . Walls Destroyed . | . . . . . . Machines Disabled . | . . . . . . Actions | -11 -10 -10 -10 -7 -7 --------- Run | Yrd Mat Min Sub Rec Scr Total 3728 | 56 42 273 473 608 2276 Wait 150 | 3 . 25 48 53 21 Move 3488 | 46 42 231 416 538 2215 Hop . | . . . . . . Pick Up 23 | 3 . 5 . 5 10 Fast Attach 9 | 4 . . . . 5 Attach 10 | . . 3 1 4 2 Detach 3 | . . 1 . 1 1 Swap 6 | . . 1 1 . 4 Drop 21 | . . 1 . 5 15 Fire 2 | . . . 2 . . Melee 14 | . . 6 5 2 1 Ram 1 | . . . . . 1 Kick . | . . . . . . Crush . | . . . . . . Escape Stasis . | . . . . . . Rewire 1 | . . . . . 1 Trap . | . . . . . . Miscellaneous . | . . . . . . Route ------- -11/Scrapyard -10/Materials -10/Mines -10/Subcaves (discovered 2 exits: [*Mat] / *Rec) -7/Recycling (discovered 2 exits: [*Fac] / *Scr) -7/Scraptown (discovered 2 exits: [*Fac x2]) History --------- Turn | Location | Event 8 | -11/Scrapyard | Discovered new exit (range 16) 60 | -11/Scrapyard | Entered Materials 84 | -10/Materials | Discovered new exit (range 14) 98 | -10/Materials | Entered Mines 149 | -10/Mines | A weapon hastily lodged in a ceiling crevice suddenly fell to the ground 163 | -10/Mines | Learned Materials garrison access intel 169 | -10/Mines | Met a Derelict bent on vengeance 220 | -10/Mines | Assisted by bots powering up and referring to "LRC-V3" 300 | -10/Mines | Found a damaged Exp. Sensor Array with a note attached 302 | -10/Mines | Found Prototype Device 303 | -10/Mines | Identified Exp. Sensor Array 324 | -10/Mines | Build established: Mutant 333 | -10/Mines | Discovered new exit (range 9) 357 | -10/Mines | Entered Subcaves 357 | -10/Subcaves | Accompanied by 3 allies 435 | -10/Subcaves | Learned location of Zion (-6) 435 | -10/Subcaves | Met a Zionite searching for "candidates" 722 | -10/Subcaves | Discovered new exit (range 11) 775 | -10/Subcaves | Discovered new exit (range 15) 791 | -10/Subcaves | Entered Recycling 791 | -7/Recycling | Accompanied by 2 allies 792 | -7/Recycling | Met a Zionite searching for Scraptown 1190 | -7/Recycling | Scanned before Scraplab entrance 1206 | -7/Recycling | Entered Scraplab 1216 | -7/Recycling | Discovered new exit (range 4) 1282 | -7/Recycling | Discovered new exit (range 15) 1388 | -7/Recycling | Entered Scraptown 1388 | -7/Scraptown | Accompanied by 2 allies 1466 | -7/Scraptown | Visited Comm Corps 1519 | -7/Scraptown | Visited Cave Peace 1536 | -7/Scraptown | Heard Great Nut preacher, LISTEN AND RECITE! 1842 | -7/Scraptown | Visited Bundlers 1913 | -7/Scraptown | Visited Shadow of the Wyrm 1945 | -7/Scraptown | Visited IN-MT5's Study 1979 | -7/Scraptown | Visited Artisan Demo Area 2032 | -7/Scraptown | Visited Cyclists 2067 | -7/Scraptown | Visited UFD Registry 2067 | -7/Scraptown | Registered with UFD as "Carbonlauncher" 2096 | -7/Scraptown | Entered Cyclist Reading Room 2139 | -7/Scraptown | Build established: Gladiator 2167 | -7/Scraptown | Discovered new exit (range 5) 2696 | -7/Scraptown | Visited Botcube Research 2705 | -7/Scraptown | Found Botcube 2727 | -7/Scraptown | Visited Junk Repository 2777 | -7/Scraptown | Visited Curators Association 2975 | -7/Scraptown | Visited Scrapoid Pod Storage 2991 | -7/Scraptown | Visited Infowarlord's Domain 3013 | -7/Scraptown | Visited Supply Room 3034 | -7/Scraptown | Visited Junk Repository 3066 | -7/Scraptown | Visited Science Testing Area 3098 | -7/Scraptown | Discovered new exit (range 5) 3208 | -7/Scraptown | Visited Scrap Suit Storage 3258 | -7/Scraptown | Visited Science Guys 3356 | -7/Scraptown | Met Optimus 3356 | -7/Scraptown | Accepted into 0bPrime 3428 | -7/Scraptown | Civil war broke out across Scraptown 3449 | -7/Scraptown | Found Scrap Suit 3539 | -7/Scraptown | Botcube activated 3557 | -7/Scraptown | Botcube completed mutation into legged form, armed with 2 guns. 3585 | -7/Scraptown | Lost 13 allies 3622 | -7/Scraptown | Core integrity fell below 50% 3628 | -7/Scraptown | Core integrity fell below 20% 3629 | -7/Scraptown | Destroyed by IJ-ERY(h) with Bolt Gun Last Messages --------------- 03608_ 2K-DP5(j) destroyed. 03611_ Greatsword destroyed. 03612_ E0-KZY(j) destroyed. 03613_ Slug penetrates OT-EQH(g). 03613_ Machine disabled. 03613_ OT-EQH(g) suffers critical hit (Destroy). 03615_ Bolt penetrates Wall. 03615_ Critical hit (Burn: +50). 03618_ OT-EQH(g) destroyed. 03621_ Penetrated by Bolt. 03621_ Imp. Hover Unit destroyed. 03624_ Critical hit (Burn: +50). 03624_ Penetrated by Bolt. 03626_ Slammed into UH-XF6(j). 03626_ Exp. Sensor Array destroyed. 03627_ Airjet destroyed. 03628_ Imp. Melee Analysis Suite destroyed. 03628_ Ion Engine destroyed. 03629_ Penetrated by Bolt. [Achievement: This Is Interesting...] Map ----- +----------------------------------------------------+ | | | | | | | | | | | | | | | | | ?????????????????????????????????????????????????? | | ?????????????????????????????????????????????????? | | ?????????????????????????????????????????????????? | | ?????????????????????????????????????????????????? | | ?????????????????????????????????????????????????? | | ?????????????????????????????????????????????????? | | ?????????????????????????????????????????????????? | | ?????????????????????????????????????????????????? | | ?????????????????????????????????????????????????? | | ?????????????????????????????????????????????????? | | ?????????????????????????????????????????????????? | | ????????????????????????????#####????????????????? | | ????????????????????????????#"""#????????????????? | | ################???####?????#" "#????????????????? | | ##"""##""|##"""#??## %##????# <%#????????????????? | | ##""!##""|##!! #### [!###### !=##???????????????? | | Mj h ==j[pj!%[ %*#???????????????? | | *%jxg p !j!j@=!=*=![=#??????????????? | | ############"###### *############??????????????? | | ??????????????????## =##?????????????????????????? | | ??????????????????#" %#??????????????????????????? | | ??#######?????????## !#??????????????????????????? | | ??" !"#??????????# #??????????????????????????? | | ??#" "#??????????# ###########????????????????? | | ###X ##??????????# # #????????????????? | | "! "#??????????# # #????????????????? | | "! !"############ # #????????????????? | | " !"#[*#]*!#]]## # #????????????????? | | "! !"#!!#]! #! ## # #????????????????? | | " "# # # ## # #????????????????? | | # ## ## # #????????????????? | | # ## # #????????????????? | | ## ########### ##### ## ########????????????????? | | ## ########### ##### ## ##??????????????????????? | | "" """"""""""" =* " "########???????????????? | | !%! % !%[ ##"" !???????????????? | | =!= != "## ""?#??????????????? | | / "## ""!#??????????????? | | %! "## = !#??????????????? | | [%"//"#??????????????? | | """""""""""""""""""" "## ""//"#??????????????? | | """""""""""""""""""" "## ""???????????????? | +----------------------------------------------------+ Best States ------------- Heat Dissipation 25 Energy Generation 18 Energy Capacity 250 Matter Stores 300 Matter Capacity 300 Sight Range 16 Robot Scan Range 20 Terrain Scan Density 10 ECM Strength 1 Evasion (%) 53 Melee Accuracy 6 Authchip Count 1 Item Schematics ----------------- None Robot Schematics ------------------ None Fabricated ------------ Nothing Repaired ---------- Nothing Studied --------- None Alien Tech Used ----------------- None Achievements -------------- Bob, First Of His Name Civilization 2243 Frankenstein Link The Feds Plot Armor This Is Interesting... You May Approach The Wall Challenges ------------ None Game ------ Seed RingSmartSegregator Manual? 0 Play Time 01:16:57 Cumulative 21.0 hours Start 2025.12.21 @ 01:36:16 End 2025.12.21 @ 18:48:22 Sessions 5 Manual Loads 0 Difficulty Rogue Special Mode None Game No. 41 Rogue 41 Adventurer 0 Explorer 0 Win Type - Total 0 Types 0/0/0/0/0/0/0/0/0/0 Lore% 26 Gallery% 23 Achievement% 16 Wizard Run 0 Options --------- Layout 1 ASCII 0 Keyboard 0 Movement Numpad Keybinds 0 Fullscreen 0 Font 20/SmallcapsGlow Map View 50x35 Zoom Use 0% Tactical HUD 1 Map Filters NONE Filters NONE Steam 1 RUN: 4d8c2277-3182-435e-ad4a-48dba2e4c6ac